fUST/lending_fUST_20250207
["ID","MTS","AMOUNT","RATE_DAILY","PERIOD"]
[352041398,1738895446186,-155.0,0.00014806,2]
[352041399,1738895446196,-155.0,0.00014806,2]
[352041400,1738895446205,-155.0,0.00014806,2]
[352041401,1738895446215,-155.0,0.00014806,2]
[352041402,1738895446224,-155.0,0.00014806,2]
[352041404,1738895446234,-155.0,0.00014806,2]
[352041407,1738895446243,-204.26,0.00014806,2]
[352041408,1738895446252,-151.0,0.00014806,2]
[352041410,1738895446262,-151.0,0.00014806,2]
[352041412,1738895446271,-308.09967,0.00014806,2]
[352041413,1738895446280,-308.09967,0.00014806,2]
[352041415,1738895446289,-174.904199,0.00014806,2]
[352041417,1738895446298,-174.904199,0.00014806,2]
[352041419,1738895446308,-160.79202925,0.0001482,5]
[352041421,1738895446317,-1000.0,0.00014876,2]
[352041423,1738895446327,-600.0,0.00014881,2]
[352041424,1738895446336,-500.1,0.00014889,2]
[352041427,1738895446346,-1210.24690706,0.00014892,2]
[352041428,1738895446355,-500.1,0.00014898,2]
[352041429,1738895446365,-50677.91296901,0.000149,2]
[352041432,1738895446375,-500.0,0.000149,2]
[352041434,1738895446384,-217.44674606,0.000149,2]
[352041435,1738895446393,-217.44,0.000149,2]
[352041438,1738895446403,-151.0,0.000149,2]
[352041440,1738895446413,-529.47957505,0.000149,2]
[352041442,1738895446425,-529.47957505,0.000149,2]
[352041444,1738895446435,-529.47957505,0.000149,2]
[352041446,1738895446445,-529.47957505,0.000149,2]
[352041448,1738895446454,-529.47957505,0.000149,2]
[352041449,1738895446464,-529.47957505,0.000149,2]
[352041451,1738895446474,-529.47957505,0.000149,2]
[352041453,1738895446484,-529.47957505,0.000149,2]
[352041455,1738895446494,-529.47957505,0.000149,2]
[352041457,1738895446504,-529.47957505,0.000149,2]
[352041459,1738895446514,-529.47957505,0.000149,2]
[352041461,1738895446524,-529.47957505,0.000149,2]
[352041463,1738895446535,-529.47957505,0.000149,2]
[352041465,1738895446545,-529.47957505,0.000149,2]
[352041467,1738895446555,-529.47957505,0.000149,2]
[352041469,1738895446568,-529.47957505,0.000149,2]
[352041471,1738895446578,-529.47957505,0.000149,2]
[352041473,1738895446587,-529.47957505,0.000149,2]
[352041475,1738895446597,-529.47957505,0.000149,2]
[352041477,1738895446607,-529.47,0.000149,2]
[352041480,1738895446617,-22603.00016514,0.00014917,2]
[352041482,1738895446627,-1200.0,0.00014924,2]
[352041484,1738895446636,-500.0,0.0001493,2]
[352041486,1738895446646,-840.63,0.00014931,2]
[352041488,1738895446656,-500.0,0.00014931,2]
[352041491,1738895446666,-316.87685406,0.00014931,2]
[352041492,1738895446676,-580.82,0.00014931,2]
[352041495,1738895446685,-500.0,0.00014931,2]
[352041496,1738895446695,-709.92,0.00014931,2]
[352041499,1738895446704,-1225.24,0.00014931,2]
[352041501,1738895446714,-926.57,0.00014931,2]
[352041503,1738895446723,-500.0,0.00014931,2]
[352041505,1738895446733,-4325.84,0.00014931,2]
[352041507,1738895446742,-500.0,0.00014931,2]
[352041509,1738895446752,-500.0,0.00014931,2]
[352041511,1738895446762,-3366.22,0.00014931,2]
[352041513,1738895446771,-500.0,0.00014931,2]
[352041515,1738895446781,-745.97,0.00014931,2]
[352041517,1738895446791,-506.87,0.00014931,2]
[352041519,1738895446800,-154.0,0.00014967,2]
[352041521,1738895446810,-154.0,0.00014967,2]
[352041523,1738895446820,-154.0,0.00014967,2]
[352041525,1738895446829,-154.0,0.00014967,2]
[352041527,1738895446839,-154.0,0.00014967,2]
[352041529,1738895446848,-154.0,0.00014967,2]
[352041531,1738895446857,-154.0,0.00014967,2]
[352041533,1738895446867,-154.0,0.00014967,2]
[352041535,1738895446876,-159.44,0.00014967,2]
[352041537,1738895446885,-151.0,0.00014967,2]
[352041539,1738895446894,-151.0,0.00014967,2]
[352041541,1738895446904,-151.0,0.00014967,2]
[352041543,1738895446913,-151.0,0.00014967,2]
[352041545,1738895446923,-151.0,0.00014967,2]
[352041547,1738895446932,-151.0,0.00014967,2]
[352041549,1738895446941,-154.18,0.00014967,2]
[352041551,1738895446951,-500.0,0.00014973,2]
[352041553,1738895446960,-500.0,0.00014973,2]
[352041555,1738895446970,-500.0,0.00014973,2]
[352041557,1738895446980,-500.0,0.00014973,2]
[352041559,1738895446990,-382.14362987,0.00014973,2]
[352041561,1738895446999,-500.0,0.00014973,2]
[352041564,1738895447010,-571.56105648,0.00014973,2]
[352041565,1738895447019,-1210.24690706,0.00014992,2]
[352041567,1738895447028,-22195.56053336,0.00015,2]
[352041615,1738895447462,-12987.70558841,0.00014069,2]
[352041617,1738895447471,-447433.24172773,0.00015,2]
[352041619,1738895447481,-2000.0,0.00015,2]
[352041621,1738895447490,-1233.0,0.00015,14]
[352041623,1738895447499,-2000.0,0.00015,2]
[352041625,1738895447509,-2622806.63881119,0.00015,5]
[352041641,1738895447658,-10948.06218786,0.00015,5]
[352042851,1738896432141,-300.0,0.00012882,2]
[352042852,1738896432164,-3395.58886428,0.00012883,2]
[352042853,1738896558882,7053.06930608,0.00012683,2]
[352042927,1738896632794,-252.76129741,0.00012682,2]
[352042930,1738896632807,-47.23870259,0.00012682,2]
[352042932,1738896632816,-1071.25079249,0.00012683,2]
[352043222,1738896640534,-16775.67990143,0.00012683,2]
[352043224,1738896640544,-8404.09336801,0.00012782,2]
[352043226,1738896640553,-1507.02129212,0.00013502,2]
[352043228,1738896640563,-467.20862671,0.00013598,2]
[352043230,1738896640574,-179.98351144,0.00013698,2]
[352043231,1738896640584,-245.20697273,0.00013698,2]
[352043233,1738896640593,-500.0,0.00013698,2]
[352043235,1738896640603,-500.0,0.00013698,2]
[352043237,1738896640612,-501.19548205,0.00013698,2]
[352043238,1738896640622,-500.0,0.00013698,2]
[352043240,1738896640631,-500.9687667,0.00013698,2]
[352043242,1738896640641,-665.49,0.00013698,2]
[352043244,1738896640652,-500.0,0.00013698,2]
[352043246,1738896640661,-500.0,0.00013698,2]
[352043248,1738896640671,-208.72447638,0.00013698,2]
[352043249,1738896640679,-500.0,0.00013698,2]
[352043251,1738896640688,-918.93,0.00013698,2]
[352043253,1738896640698,-500.0,0.00013698,2]
[352043255,1738896640707,-532.44,0.00013698,2]
[352043257,1738896640716,-3244.38,0.00013698,2]
[352043259,1738896640726,-694.93,0.00013698,2]
[352043261,1738896640735,-476.36076198,0.00013698,2]
[352043263,1738896640745,-500.0,0.00013698,2]
[352043265,1738896640758,-500.0,0.00013698,2]
[352043266,1738896640767,-500.0,0.00013698,2]
[352043268,1738896640776,-500.0,0.00013698,2]
[352043270,1738896640786,-500.0,0.00013698,2]
[352043272,1738896640795,-2765.15,0.00013698,2]
[352043274,1738896640805,-665.11,0.00013698,2]
[352043275,1738896640814,-420.61520495,0.00013698,2]
[352043277,1738896640824,-500.0,0.00013698,2]
[352043279,1738896640833,-500.0,0.00013698,2]
[352043281,1738896640843,-500.0,0.00013698,2]
[352043283,1738896640853,-480.688477,0.00013699,2]
[352043285,1738896640862,-665.49,0.00013835,2]
[352043287,1738896640872,-500.0,0.00013835,2]
[352043288,1738896640882,-500.0,0.00013835,2]
[352043290,1738896640895,-500.0,0.00013835,2]
[352043292,1738896640904,-918.93,0.00013835,2]
[352043294,1738896640914,-500.0,0.00013835,2]
[352043296,1738896640923,-532.44,0.00013835,2]
[352043298,1738896640933,-3244.38,0.00013835,2]
[352043299,1738896640943,-694.93,0.00013835,2]
[352043301,1738896640952,-500.0,0.00013835,2]
[352043303,1738896640961,-500.0,0.00013835,2]
[352043305,1738896640972,-500.0,0.00013835,2]
[352043307,1738896640982,-500.0,0.00013835,2]
[352043309,1738896640991,-2765.15,0.00013835,2]
[352043310,1738896641000,-665.11,0.00013835,2]
[352043312,1738896641009,-500.0,0.00013835,2]
[352043314,1738896641019,-500.0,0.00013835,2]
[352043316,1738896641028,-500.0,0.00013835,2]
[352043318,1738896641038,-420.0,0.00013913,2]
[352043319,1738896641047,-279.15097072,0.0001397,2]
[352043321,1738896641056,-195.49654876,0.0001397,2]
[352043323,1738896641066,-301.61593999,0.0001397,2]
[352043325,1738896641075,-500.0,0.0001397,2]
[352043327,1738896641085,-500.0,0.0001397,2]
[352043328,1738896641094,-500.0,0.0001397,2]
[352043330,1738896641103,-500.0,0.0001397,2]
[352043347,1738896641275,-500.0,0.0001397,2]
[352043349,1738896641285,-203.39430571,0.0001397,2]
[352043351,1738896641295,-616.58656094,0.0001397,2]
[352043353,1738896641304,-665.49,0.00013972,2]
[352043354,1738896641314,-500.0,0.00013972,2]
[352043356,1738896641324,-500.0,0.00013972,2]
[352043358,1738896641333,-500.0,0.00013972,2]
[352043360,1738896641342,-918.93,0.00013972,2]
[352043362,1738896641351,-500.0,0.00013972,2]
[352043364,1738896641361,-532.44,0.00013972,2]
[352043366,1738896641371,-3244.38,0.00013972,2]
[352043368,1738896641381,-694.93,0.00013972,2]
[352043370,1738896641390,-500.0,0.00013972,2]
[352043372,1738896641400,-500.0,0.00013972,2]
[352043374,1738896641410,-500.0,0.00013972,2]
[352043376,1738896641420,-500.0,0.00013972,2]
[352043377,1738896641429,-2765.15,0.00013972,2]
[352043379,1738896641438,-665.11,0.00013972,2]
[352043381,1738896641448,-500.0,0.00013972,2]
[352043383,1738896641458,-500.0,0.00013972,2]
[352043385,1738896641467,-500.0,0.00013972,2]
[352043387,1738896641476,-400.0,0.00013973,2]
[352043388,1738896641486,-665.49,0.00014109,2]
[352043390,1738896641495,-432.30778413,0.00014109,2]
[352043392,1738896641504,-500.0,0.00014109,2]
[352043394,1738896641514,-500.0,0.00014109,2]
[352043396,1738896641523,-918.93,0.00014109,2]
[352043398,1738896641532,-500.0,0.00014109,2]
[352043400,1738896641542,-532.44,0.00014109,2]
[352043401,1738896641551,-3244.38,0.00014109,2]
[352043403,1738896641561,-694.93,0.00014109,2]
[352043405,1738896641570,-500.0,0.00014109,2]
[352043407,1738896641580,-500.0,0.00014109,2]
[352043409,1738896641589,-500.0,0.00014109,2]
[352043411,1738896641598,-500.0,0.00014109,2]
[352043413,1738896641608,-2765.15,0.00014109,2]
[352043415,1738896641618,-665.11,0.00014109,2]
[352043417,1738896641628,-500.0,0.00014109,2]
[352043418,1738896641637,-500.0,0.00014109,2]
[352043420,1738896641646,-500.0,0.00014109,2]
[352043422,1738896641656,-711.6357211,0.00014164,2]
[352043424,1738896641665,-467.20862667,0.00014213,2]
[352043426,1738896641675,-665.49,0.00014246,2]
[352043428,1738896641685,-500.0,0.00014246,2]
[352043430,1738896641694,-500.0,0.00014246,2]
[352043432,1738896641703,-918.93,0.00014246,2]
[352043434,1738896641712,-500.0,0.00014246,2]
[352043436,1738896641721,-532.44,0.00014246,2]
[352043437,1738896641730,-3244.38,0.00014246,2]
[352043439,1738896641740,-694.93,0.00014246,2]
[352043441,1738896641748,-500.0,0.00014246,2]
[352043443,1738896641758,-500.0,0.00014246,2]
[352043445,1738896641767,-500.0,0.00014246,2]
[352043447,1738896641776,-500.0,0.00014246,2]
[352043449,1738896641785,-2765.15,0.00014246,2]
[352043451,1738896641794,-665.11,0.00014246,2]
[352043452,1738896641803,-500.0,0.00014246,2]
[352043454,1738896641812,-316.87685406,0.00014246,2]
[352043456,1738896641821,-500.0,0.00014246,2]
[352043458,1738896641832,-222.21851354,0.0001425,2]
[352043460,1738896641842,-153.0,0.00014327,2]
[352043462,1738896641851,-153.0,0.00014327,2]
[352043464,1738896641861,-665.49,0.00014383,2]
[352043466,1738896641871,-500.0,0.00014383,2]
[352043468,1738896641880,-500.0,0.00014383,2]
[352043469,1738896641890,-918.93,0.00014383,2]
[352043471,1738896641903,-500.0,0.00014383,2]
[352043473,1738896641912,-532.44,0.00014383,2]
[352043475,1738896641921,-181.80173856,0.00014383,2]
[352043477,1738896641935,-3062.57826144,0.00014383,2]
[352043479,1738896641944,-694.93,0.00014383,2]
[352043481,1738896641954,-500.0,0.00014383,2]
[352043483,1738896641963,-500.0,0.00014383,2]
[352043485,1738896641973,-500.0,0.00014383,2]
[352043487,1738896641982,-500.0,0.00014383,2]
[352043489,1738896641991,-2765.15,0.00014383,2]
[352043491,1738896642001,-665.11,0.00014383,2]
[352043492,1738896642010,-500.0,0.00014383,2]
[352043494,1738896642020,-500.0,0.00014383,2]
[352043496,1738896642029,-435.65949152,0.0001447,2]
[352043498,1738896642039,-184.91628838,0.00014493,2]
[352043500,1738896642049,-1393.19,0.000145,2]
[352043502,1738896642057,-665.49,0.0001452,2]
[352043504,1738896642067,-621.81294365,0.0001452,2]
[352043506,1738896642077,-500.0,0.0001452,2]
[352043508,1738896642086,-918.93,0.0001452,2]
[352043510,1738896642095,-500.0,0.0001452,2]
[352043511,1738896642104,-532.44,0.0001452,2]
[352043513,1738896642114,-3244.38,0.0001452,2]
[352043515,1738896642123,-694.93,0.0001452,2]
[352043517,1738896642132,-500.0,0.0001452,2]
[352043519,1738896642142,-500.0,0.0001452,2]
[352043521,1738896642151,-500.0,0.0001452,2]
[352043523,1738896642160,-500.0,0.0001452,2]
[352043525,1738896642169,-2765.15,0.0001452,2]
[352043527,1738896642179,-665.11,0.0001452,2]
[352043528,1738896642188,-500.0,0.0001452,2]
[352043530,1738896642198,-500.0,0.0001452,2]
[352043532,1738896642207,-1034.87,0.00014522,2]
[352043534,1738896642217,-156.43450877,0.00014531,2]
[352043536,1738896642226,-562.0,0.000146,5]
[352043538,1738896642236,-473.97863425,0.0001461,2]
[352043540,1738896642245,-1161.83703078,0.00014616,2]
[352043542,1738896642260,-261.808,0.00014626,2]
[352043544,1738896642269,-542.431,0.00014626,2]
[352043545,1738896642278,-1975.0,0.00014626,2]
[352043547,1738896642288,-2298.0,0.00014626,2]
[352043549,1738896642298,-153.0,0.00014626,2]
[352043551,1738896642308,-396.0,0.00014626,2]
[352043553,1738896642317,-150.985,0.00014626,2]
[352043555,1738896642326,-332.0,0.0001463,2]
[352043557,1738896642336,-665.49,0.00014657,2]
[352043559,1738896642345,-500.0,0.00014657,2]
[352043561,1738896642355,-918.93,0.00014657,2]
[352043563,1738896642364,-500.0,0.00014657,2]
[352043565,1738896642373,-532.44,0.00014657,2]
[352043567,1738896642382,-3244.38,0.00014657,2]
[352043569,1738896642391,-694.93,0.00014657,2]
[352043571,1738896642400,-344.61611075,0.00014657,2]
[352043573,1738896642410,-500.0,0.00014657,2]
[352043575,1738896642419,-500.0,0.00014657,2]
[352043576,1738896642428,-500.0,0.00014657,2]
[352043578,1738896642437,-1268.14904388,0.00014657,2]
[352043685,1738896643468,-1497.00095612,0.00014657,2]
[352043687,1738896643478,-665.11,0.00014657,2]
[352043689,1738896643487,-158.33940084,0.00014657,2]
[352043691,1738896643498,-341.66059916,0.00014657,2]
[352043693,1738896643507,-158.33940084,0.00014657,2]
[352043696,1738896643520,-341.66059916,0.00014657,2]
[352043697,1738896643530,-13264.03974987,0.00014689,2]
[352043699,1738896643540,-503.08221324,0.00014716,2]
[352043701,1738896643549,-500.8508411,0.00014716,2]
[352043704,1738896643559,-261.16091286,0.00014716,2]
[352043705,1738896643568,-251.63112349,0.00014716,2]
[352043707,1738896643577,-161.19109569,0.00014716,2]
[352043709,1738896643586,-500.0,0.00014716,2]
[352043711,1738896643596,-1161.83703078,0.00014716,2]
[352043713,1738896643605,-504.33558914,0.00014717,2]
[352043715,1738896643615,-500.0,0.00014717,2]
[352043717,1738896643625,-600.0,0.00014727,2]
[352043720,1738896643635,-1003.71064995,0.00014741,2]
[352043721,1738896643644,-155.328664,0.00014749,3]
[352043723,1738896643653,-1000.0,0.00014751,2]
[352043726,1738896643663,-665.49,0.00014794,2]
[352043728,1738896643673,-918.93,0.00014794,2]
[352043729,1738896643683,-500.0,0.00014794,2]
[352043733,1738896643693,-532.44,0.00014794,2]
[352043736,1738896643702,-3244.38,0.00014794,2]
[352043739,1738896643711,-694.93,0.00014794,2]
[352043741,1738896643721,-500.0,0.00014794,2]
[352043744,1738896643730,-500.0,0.00014794,2]
[352043747,1738896643739,-500.0,0.00014794,2]
[352043749,1738896643749,-2765.15,0.00014794,2]
[352043751,1738896643758,-665.11,0.00014794,2]
[352043753,1738896643767,-500.0,0.00014794,2]
[352043755,1738896643777,-500.0,0.00014794,2]
[352043757,1738896643786,-500.24662846,0.000148,2]
[352043759,1738896643795,-500.0,0.000148,2]
[352043761,1738896643805,-1161.83703078,0.00014816,2]
[352043763,1738896643814,-467.20862667,0.00014827,2]
[352043765,1738896643823,-255.520292,0.00014849,2]
[352043767,1738896643832,-500.0,0.0001485,2]
[352043769,1738896643841,-502.27156308,0.0001485,2]
[352043771,1738896643851,-1000.0,0.00014854,2]
[352043773,1738896643860,-160.79202925,0.0001487,5]
[352043775,1738896643870,-600.0,0.00014881,2]
[352043777,1738896643880,-37955.54787068,0.000149,2]
[352043779,1738896643891,-158.84401978,0.000149,2]
[352043781,1738896643902,-158.84401978,0.000149,2]
[352043783,1738896643912,-158.84401978,0.000149,2]
[352043785,1738896643925,-158.84401978,0.000149,2]
[352043787,1738896643934,-158.84401978,0.000149,2]
[352043789,1738896643944,-158.84401978,0.000149,2]
[352043791,1738896643954,-158.84401978,0.000149,2]
[352043793,1738896643963,-158.84401978,0.000149,2]
[352043795,1738896643974,-158.84401978,0.000149,2]
[352043797,1738896643984,-158.84401978,0.000149,2]
[352043799,1738896643994,-158.84401978,0.000149,2]
[352043801,1738896644005,-158.84401978,0.000149,2]
[352043803,1738896644014,-158.84401978,0.000149,2]
[352043805,1738896644024,-158.84401978,0.000149,2]
[352043807,1738896644033,-158.84401978,0.000149,2]
[352043809,1738896644043,-158.84401978,0.000149,2]
[352043811,1738896644058,-158.84401978,0.000149,2]
[352043813,1738896644069,-158.84401978,0.000149,2]
[352043815,1738896644080,-158.84401978,0.000149,2]
[352043817,1738896644089,-158.84,0.000149,2]
[352043820,1738896644099,-190.4,0.00014905,2]
[352043821,1738896644109,-154.0,0.00014905,2]
[352043824,1738896644121,-154.0,0.00014905,2]
[352043826,1738896644134,-154.0,0.00014905,2]
[352043827,1738896644144,-154.0,0.00014905,2]
[352043830,1738896644154,-154.0,0.00014905,2]
[352043832,1738896644163,-154.0,0.00014905,2]
[352043833,1738896644173,-154.0,0.00014905,2]
[352043836,1738896644183,-154.0,0.00014905,2]
[352043838,1738896644193,-154.0,0.00014905,2]
[352043840,1738896644203,-154.0,0.00014905,2]
[352043842,1738896644213,-154.0,0.00014905,2]
[352043844,1738896644222,-154.0,0.00014905,2]
[352043846,1738896644231,-154.0,0.00014905,2]
[352043848,1738896644241,-154.0,0.00014905,2]
[352043850,1738896644250,-154.0,0.00014905,2]
[352043852,1738896644259,-154.0,0.00014905,2]
[352043854,1738896644270,-154.0,0.00014905,2]
[352043856,1738896644279,-154.0,0.00014905,2]
[352043858,1738896644288,-154.0,0.00014905,2]
[352043860,1738896644298,-154.0,0.00014905,2]
[352043862,1738896644308,-270.56,0.00014905,2]
[352043864,1738896644318,-1161.83703078,0.00014916,2]
[352043866,1738896644327,-22603.54925277,0.00014917,2]
[352043868,1738896644336,-665.49,0.00014931,2]
[352043870,1738896644345,-918.93,0.00014931,2]
[352043872,1738896644354,-500.0,0.00014931,2]
[352043874,1738896644363,-532.44,0.00014931,2]
[352043876,1738896644373,-3244.38,0.00014931,2]
[352043878,1738896644382,-694.93,0.00014931,2]
[352043880,1738896644391,-500.0,0.00014931,2]
[352043882,1738896644401,-500.0,0.00014931,2]
[352043884,1738896644410,-500.0,0.00014931,2]
[352043886,1738896644419,-2765.15,0.00014931,2]
[352043888,1738896644429,-665.11,0.00014931,2]
[352043890,1738896644439,-500.0,0.00014931,2]
[352043892,1738896644448,-500.0,0.00014931,2]
[352043894,1738896644457,-476.69273039,0.00014955,2]
[352043896,1738896644467,-152.0,0.0001499,2]
[352043898,1738896644477,-152.0,0.0001499,2]
[352043899,1738896644486,-152.0,0.0001499,2]
[352043900,1738896644495,-152.0,0.0001499,2]
[352043901,1738896644504,-152.0,0.0001499,2]
[352043902,1738896644513,-152.0,0.0001499,2]
[352043903,1738896644523,-152.0,0.0001499,2]
[352043905,1738896644532,-152.0,0.0001499,2]
[352043907,1738896644541,-152.0,0.0001499,2]
[352043909,1738896644551,-152.0,0.0001499,2]
[352043911,1738896644560,-152.0,0.0001499,2]
[352043913,1738896644569,-152.0,0.0001499,2]
[352043915,1738896644579,-152.0,0.0001499,2]
[352043917,1738896644588,-152.0,0.0001499,2]
[352043919,1738896644597,-152.0,0.0001499,2]
[352043921,1738896644606,-152.0,0.0001499,2]
[352043923,1738896644616,-152.0,0.0001499,2]
[352043925,1738896644626,-152.0,0.0001499,2]
[352043927,1738896644635,-152.0,0.0001499,2]
[352043929,1738896644645,-152.0,0.0001499,2]
[352043931,1738896644654,-280.46,0.0001499,2]
[352043933,1738896644664,-154.0,0.0001499,2]
[352043936,1738896644674,-154.0,0.0001499,2]
[352043937,1738896644683,-154.0,0.0001499,2]
[352043939,1738896644693,-154.0,0.0001499,2]
[352043941,1738896644703,-154.0,0.0001499,2]
[352043944,1738896644714,-154.0,0.0001499,2]
[352043945,1738896644723,-154.0,0.0001499,2]
[352043948,1738896644733,-154.0,0.0001499,2]
[352043949,1738896644742,-154.0,0.0001499,2]
[352043952,1738896644752,-154.0,0.0001499,2]
[352043954,1738896644761,-154.0,0.0001499,2]
[352043956,1738896644771,-154.0,0.0001499,2]
[352043958,1738896644780,-154.0,0.0001499,2]
[352043959,1738896644789,-154.0,0.0001499,2]
[352043961,1738896644798,-154.0,0.0001499,2]
[352043963,1738896644807,-154.0,0.0001499,2]
[352043965,1738896644816,-154.0,0.0001499,2]
[352043967,1738896644826,-154.0,0.0001499,2]
[352043969,1738896644835,-216.42,0.0001499,2]
[352043971,1738896644844,-1000.0,0.00014991,2]
[352043973,1738896644854,-500.0,0.00014999,2]
[352043975,1738896644863,-628.36731228,0.00014999,2]
[352043977,1738896644873,-359543.57900095,0.00015,5]
[352043980,1738896644883,-500.0,0.00015,2]
[352043981,1738896644894,-449.61449807,0.00015,2]
[352043983,1738896644904,-10000.0,0.00015,2]
[352043985,1738896644914,-500.58,0.00015,2]
[352043987,1738896644924,-500.0,0.00015,2]
[352043989,1738896644933,-8419.16,0.00015,2]
[352043991,1738896644943,-141902.84692836,0.00015,30]
[352043994,1738896644956,-4893.95367589,0.00015,30]
[352044145,1738896646499,-3596.60669562,0.00015,30]
[352044148,1738896646518,-2385.27305368,0.00015,30]
[352045780,1738897641124,-300.0,0.00013161,2]
[352045781,1738897641147,-1685.73780704,0.00013163,2]
[352045888,1738897838538,-300.0,0.00013161,2]
[352045890,1738897838548,-131.19543842,0.00013163,2]
[352045899,1738897838620,-1362.0279742,0.00013163,2]
[352045966,1738897840739,-1233.62440114,0.00013163,2]
[352046038,1738897843804,-2277.82963043,0.00013163,2]
[352046040,1738897844074,-354.86630482,0.00013163,2]
[352046068,1738897887136,1000.0,0.00014,30]
[352046069,1738897887424,1000.0,0.00014,30]
[352046070,1738897887741,1000.0,0.00014,30]
[352046071,1738897888062,1000.0,0.00014,30]
[352046072,1738897888561,1000.0,0.00014,30]
[352046073,1738897888635,1000.0,0.00014,30]
[352046074,1738897888917,1000.0,0.00014,30]
[352046075,1738897889205,1000.0,0.00014,30]
[352046076,1738897889992,1000.0,0.00014,30]
[352046077,1738897890288,1000.0,0.00014,30]
[352046078,1738897918700,2000.0,0.00019233,120]
[352046079,1738897919500,2000.0,0.00019205,120]
[352046083,1738898071518,2000.0,0.00014,30]
[352046084,1738898071916,2000.0,0.00014,30]
[352046085,1738898072251,2000.0,0.00014,30]
[352046086,1738898072437,2000.0,0.00014,30]
[352046087,1738898072753,2000.0,0.00014,30]
[352046088,1738898073066,2000.0,0.00014,30]
[352046089,1738898073381,2000.0,0.00014,30]
[352046090,1738898073726,2000.0,0.00014,30]
[352046091,1738898074052,2000.0,0.00014,30]
[352046092,1738898074373,2000.0,0.00014,30]
[352046099,1738898847119,-300.0,0.00012765,2]
[352046100,1738898847142,-6306.85471733,0.00012766,2]
[352046101,1738898853083,-5835.09620205,0.00012766,2]
[352046131,1738899037759,-666.95830325,0.00012766,2]
[352046132,1738899037771,-11003.53861296,0.00012766,2]
[352046133,1738899037867,-1087.55216441,0.00012766,2]
[352046134,1738899037877,-13264.03974987,0.00013031,2]
[352046135,1738899037887,-630.73164606,0.00013598,2]
[352046136,1738899037896,-500.0,0.00013697,2]
[352046137,1738899037906,-500.0,0.00013697,2]
[352046138,1738899037916,-500.0,0.00013697,2]
[352046139,1738899037928,-332.84098997,0.00013697,2]
[352046140,1738899037939,-235.17628455,0.00013697,2]
[352046141,1738899037948,-500.0,0.00013698,2]
[352046142,1738899037958,-504.38097172,0.00013698,2]
[352046143,1738899037968,-503.06762347,0.00013698,2]
[352046144,1738899037977,-503.48057497,0.00013698,2]
[352046145,1738899037987,-503.76536497,0.00013698,2]
[352046146,1738899037996,-500.0,0.00013698,2]
[352046147,1738899038006,-500.0,0.00013698,2]
[352046148,1738899038015,-500.0,0.00013698,2]
[352046149,1738899038026,-500.0,0.00013698,2]
[352046150,1738899038035,-500.0,0.00013698,2]
[352046151,1738899038045,-500.0,0.00013698,2]
[352046152,1738899038054,-503.27840528,0.00013698,2]
[352046153,1738899038063,-508.3098349,0.00013698,2]
[352046154,1738899038072,-500.9237029,0.00013698,2]
[352046155,1738899038081,-504.62918245,0.00013698,2]
[352046156,1738899038090,-500.0,0.00013698,2]
[352046157,1738899038100,-500.0,0.00013698,2]